fUSD/lending_fUSD_20250113
["ID","MTS","AMOUNT","RATE_DAILY","PERIOD"]
[348747180,1736767842902,-500.0,9.999e-05,2]
[348747181,1736767842911,-500.0,9.999e-05,2]
[348747182,1736767842920,-568.14257712,9.999e-05,2]
[348747183,1736767842929,-569.35422327,9.999e-05,2]
[348747184,1736767842938,-500.0,9.999e-05,2]
[348747185,1736767842948,-500.0,9.999e-05,2]
[348747186,1736767842959,-500.0,9.999e-05,2]
[348747187,1736767842968,-500.0,9.999e-05,2]
[348747188,1736767842978,-500.0,9.999e-05,2]
[348747189,1736767842987,-500.0,9.999e-05,2]
[348747190,1736767842996,-500.0,9.999e-05,2]
[348747191,1736767843006,-500.0,9.999e-05,2]
[348747192,1736767843015,-500.0,9.999e-05,2]
[348747193,1736767843025,-500.0,9.999e-05,2]
[348747194,1736767843034,-500.0,9.999e-05,2]
[348747195,1736767843043,-500.0,9.999e-05,2]
[348747196,1736767843052,-500.0,9.999e-05,2]
[348747197,1736767843062,-500.0,9.999e-05,2]
[348747198,1736767843072,-500.0,9.999e-05,2]
[348747199,1736767843081,-500.0,9.999e-05,2]
[348747200,1736767843091,-500.0,9.999e-05,2]
[348747201,1736767843100,-500.0,9.999e-05,2]
[348747202,1736767843110,-500.0,9.999e-05,2]
[348747203,1736767843119,-348.61688396,9.999e-05,2]
[348747204,1736767843129,-500.0,9.999e-05,2]
[348747205,1736767843138,-500.0,9.999e-05,2]
[348747206,1736767843147,-500.0,9.999e-05,2]
[348747207,1736767843156,-500.0,9.999e-05,2]
[348747208,1736767843166,-500.0,9.999e-05,2]
[348747209,1736767843175,-500.0,9.999e-05,2]
[348747211,1736767843185,-500.0,9.999e-05,2]
[348747212,1736767843194,-500.0,9.999e-05,2]
[348747213,1736767843204,-500.0,9.999e-05,2]
[348747214,1736767843214,-500.0,9.999e-05,2]
[348747215,1736767843223,-500.0,9.999e-05,2]
[348747216,1736767843233,-500.0,9.999e-05,2]
[348747217,1736767843243,-500.0,9.999e-05,2]
[348747218,1736767843253,-500.0,9.999e-05,2]
[348747219,1736767843262,-500.0,9.999e-05,2]
[348747220,1736767843272,-500.0,9.999e-05,2]
[348747221,1736767843281,-506.02834648,9.999e-05,2]
[348747227,1736767843459,-500.0,9.999e-05,2]
[348747228,1736767843471,-500.0,9.999e-05,2]
[348747229,1736767843481,-296.17631208,9.999e-05,2]
[348747230,1736767843490,-500.0,9.999e-05,2]
[348747231,1736767843499,-185.54,9.999e-05,2]
[348747232,1736767843510,-500.0,9.999e-05,2]
[348747233,1736767843519,-500.0,9.999e-05,2]
[348747234,1736767843528,-500.0,9.999e-05,2]
[348747235,1736767843537,-500.0,9.999e-05,2]
[348747236,1736767843547,-500.0,9.999e-05,2]
[348747237,1736767843556,-500.0,9.999e-05,2]
[348747238,1736767843565,-500.0,9.999e-05,2]
[348747239,1736767843574,-500.0,9.999e-05,2]
[348747240,1736767843583,-500.0,9.999e-05,2]
[348747241,1736767843592,-500.0,9.999e-05,2]
[348747242,1736767843601,-500.0,9.999e-05,2]
[348747243,1736767843610,-500.0,9.999e-05,2]
[348747244,1736767843621,-500.0,9.999e-05,2]
[348747245,1736767843630,-500.0,9.999e-05,2]
[348747246,1736767843639,-500.0,9.999e-05,2]
[348747247,1736767843649,-500.0,9.999e-05,2]
[348747248,1736767843658,-500.0,9.999e-05,2]
[348747249,1736767843667,-500.0,9.999e-05,2]
[348747250,1736767843676,-500.0,9.999e-05,2]
[348747251,1736767843685,-500.0,9.999e-05,2]
[348747252,1736767843694,-500.0,9.999e-05,2]
[348747253,1736767843703,-500.0,9.999e-05,2]
[348747254,1736767843713,-500.0,9.999e-05,2]
[348747255,1736767843722,-500.0,9.999e-05,2]
[348747256,1736767843731,-500.0,9.999e-05,2]
[348747257,1736767843740,-500.0,9.999e-05,2]
[348747258,1736767843749,-500.0,9.999e-05,2]
[348747259,1736767843758,-500.0,9.999e-05,2]
[348747260,1736767843767,-500.0,9.999e-05,2]
[348747261,1736767843776,-500.0,9.999e-05,2]
[348747262,1736767843785,-500.0,9.999e-05,2]
[348747263,1736767843795,-600.79,9.999e-05,2]
[348747264,1736767843804,-500.0,9.999e-05,2]
[348747265,1736767843813,-500.0,9.999e-05,2]
[348747266,1736767843823,-500.0,9.999e-05,2]
[348747267,1736767843832,-500.0,9.999e-05,2]
[348747268,1736767843841,-501.22629495,9.999e-05,2]
[348747269,1736767843850,-505.310352,9.999e-05,2]
[348747270,1736767843859,-500.0,9.999e-05,2]
[348747271,1736767843869,-500.0,9.999e-05,2]
[348747272,1736767843878,-476.05115427,9.999e-05,2]
[348747273,1736767843888,-504.25399019,9.999e-05,2]
[348747274,1736767843897,-297.5166804,9.999e-05,2]
[348747275,1736767843906,-500.0,9.999e-05,2]
[348747276,1736767843915,-500.0,9.999e-05,2]
[348747277,1736767843924,-503.03196625,9.999e-05,2]
[348747278,1736767843933,-579.63954165,9.999e-05,2]
[348747279,1736767843943,-500.0,9.999e-05,2]
[348747280,1736767843952,-500.0,9.999e-05,2]
[348747281,1736767843962,-500.0,9.999e-05,2]
[348747282,1736767843971,-518.04,9.999e-05,2]
[348747283,1736767843980,-500.0,9.999e-05,2]
[348747284,1736767843990,-500.0,9.999e-05,2]
[348747285,1736767843999,-500.0,9.999e-05,2]
[348747286,1736767844008,-500.0,9.999e-05,2]
[348747287,1736767844018,-507.19429354,9.999e-05,2]
[348747288,1736767844027,-500.0,9.999e-05,2]
[348747289,1736767844037,-515.23635639,9.999e-05,2]
[348747290,1736767844047,-500.0,9.999e-05,2]
[348747291,1736767844056,-239.68237887,9.999e-05,2]
[348747292,1736767844065,-500.0,9.999e-05,2]
[348747293,1736767844075,-534.08182817,9.999e-05,2]
[348747294,1736767844084,-500.0,9.999e-05,2]
[348747295,1736767844094,-500.0,9.999e-05,2]
[348747296,1736767844103,-508.45292288,9.999e-05,2]
[348747297,1736767844113,-500.0,9.999e-05,2]
[348747298,1736767844125,-500.0,9.999e-05,2]
[348747299,1736767844135,-500.0,9.999e-05,2]
[348747300,1736767844144,-500.0,9.999e-05,2]
[348747301,1736767844153,-500.0,9.999e-05,2]
[348747302,1736767844163,-502.12790914,9.999e-05,2]
[348747303,1736767844172,-426.39753873,9.999e-05,2]
[348747304,1736767844181,-500.0,9.999e-05,2]
[348747305,1736767844191,-155.94361134,9.999e-05,2]
[348747306,1736767844200,-500.0,9.999e-05,2]
[348747307,1736767844210,-500.0,9.999e-05,2]
[348747308,1736767844219,-406.26897167,9.999e-05,2]
[348747309,1736767844229,-500.0,9.999e-05,2]
[348747310,1736767844238,-574.81716959,9.999e-05,2]
[348747311,1736767844247,-500.0,9.999e-05,2]
[348747312,1736767844257,-500.0,9.999e-05,2]
[348747313,1736767844266,-507.31740979,9.999e-05,2]
[348747314,1736767844275,-511.57550406,9.999e-05,2]
[348747315,1736767844285,-500.0,9.999e-05,2]
[348747316,1736767844294,-302.11034489,9.999e-05,2]
[348747317,1736767844303,-500.0,9.999e-05,2]
[348747318,1736767844313,-500.0,9.999e-05,2]
[348747319,1736767844322,-500.0,9.999e-05,2]
[348747320,1736767844331,-501.28597525,9.999e-05,2]
[348747321,1736767844340,-500.0,9.999e-05,2]
[348747322,1736767844350,-500.0,9.999e-05,2]
[348747323,1736767844359,-516.40983848,9.999e-05,2]
[348747324,1736767844369,-649.69,9.999e-05,2]
[348747325,1736767844378,-605.41998453,9.999e-05,2]
[348747326,1736767844388,-500.0,9.999e-05,2]
[348747327,1736767844397,-500.0,9.999e-05,2]
[348747328,1736767844406,-500.0,9.999e-05,2]
[348747329,1736767844416,-500.0,9.999e-05,2]
[348747330,1736767844425,-500.0,9.999e-05,2]
[348747331,1736767844435,-500.0,9.999e-05,2]
[348747332,1736767844444,-626.34250373,9.999e-05,2]
[348747333,1736767844453,-500.0,9.999e-05,2]
[348747334,1736767844470,-500.0,9.999e-05,2]
[348747335,1736767844479,-500.0,9.999e-05,2]
[348747336,1736767844489,-500.0,9.999e-05,2]
[348747337,1736767844498,-500.0,9.999e-05,2]
[348747338,1736767844509,-500.0,9.999e-05,2]
[348747339,1736767844518,-500.0,9.999e-05,2]
[348747340,1736767844528,-500.0,9.999e-05,2]
[348747341,1736767844539,-500.0,9.999e-05,2]
[348747342,1736767844548,-831.35,9.999e-05,2]
[348747343,1736767844558,-500.0,9.999e-05,2]
[348747344,1736767844567,-500.0,9.999e-05,2]
[348747345,1736767844576,-500.0,9.999e-05,2]
[348747346,1736767844586,-500.0,9.999e-05,2]
[348747347,1736767844595,-500.0,9.999e-05,2]
[348747348,1736767844604,-500.0,9.999e-05,2]
[348747349,1736767844614,-190.19,9.999e-05,2]
[348747350,1736767844624,-500.0,9.999e-05,2]
[348747351,1736767844634,-500.0,9.999e-05,2]
[348747352,1736767844643,-640.8,9.999e-05,2]
[348747353,1736767844652,-500.0,9.999e-05,2]
[348747354,1736767844662,-500.0,9.999e-05,2]
[348747355,1736767844671,-500.0,9.999e-05,2]
[348747356,1736767844680,-1011.83,9.999e-05,2]
[348747357,1736767844689,-500.0,9.999e-05,2]
[348747358,1736767844698,-500.0,9.999e-05,2]
[348747359,1736767844709,-500.0,9.999e-05,2]
[348747360,1736767844718,-500.0,9.999e-05,2]
[348747361,1736767844727,-500.0,9.999e-05,2]
[348747362,1736767844736,-500.0,9.999e-05,2]
[348747363,1736767844745,-500.0,9.999e-05,2]
[348747364,1736767844754,-500.0,9.999e-05,2]
[348747365,1736767844763,-500.0,9.999e-05,2]
[348747366,1736767844772,-500.0,9.999e-05,2]
[348747367,1736767844781,-500.0,9.999e-05,2]
[348747368,1736767844790,-500.0,9.999e-05,2]
[348747369,1736767844800,-500.0,9.999e-05,2]
[348747370,1736767844809,-500.0,9.999e-05,2]
[348747371,1736767844818,-500.0,9.999e-05,2]
[348747372,1736767844827,-500.0,9.999e-05,2]
[348747373,1736767844837,-524.10811155,9.999e-05,2]
[348747374,1736767844846,-500.0,9.999e-05,2]
[348747375,1736767844855,-500.0,9.999e-05,2]
[348747376,1736767844864,-1346.29,9.999e-05,2]
[348747377,1736767844874,-503.29227347,9.999e-05,2]
[348747378,1736767844883,-500.0,9.999e-05,2]
[348747379,1736767844893,-535.33,9.999e-05,2]
[348747380,1736767844902,-505.65404367,9.999e-05,2]
[348747381,1736767844911,-500.0,9.999e-05,2]
[348747382,1736767844920,-503.18485712,9.999e-05,2]
[348747383,1736767844930,-25353.01508155,9.999e-05,2]
[348747384,1736767844939,-500.0,9.999e-05,2]
[348747385,1736767844948,-614.19665902,9.999e-05,2]
[348747386,1736767844959,-504.04881179,9.999e-05,2]
[348747387,1736767844969,-500.0,9.999e-05,2]
[348747388,1736767844978,-500.0,9.999e-05,2]
[348747389,1736767844988,-500.0,9.999e-05,2]
[348747390,1736767844997,-447.16,9.999e-05,2]
[348747391,1736767845007,-490.44,9.999e-05,2]
[348747392,1736767845016,-865.89,9.999e-05,2]
[348747393,1736767845025,-574.23,9.999e-05,2]
[348747394,1736767845035,-268.77867856,9.999e-05,2]
[348747395,1736767845044,-316.62392498,9.999e-05,2]
[348747396,1736767845053,-458.82940542,9.999e-05,2]
[348747397,1736767845063,-500.0,9.999e-05,2]
[348747398,1736767845076,-3495246.70319804,0.0001,2]
[348747399,1736767845085,-570680.27552519,0.0001,2]
[348747400,1736767845097,-183647.721484,0.0001,2]
[348747401,1736767845106,-600.13474615,0.0001,2]
[348747402,1736767845116,-1075.83312388,0.0001,2]
[348747403,1736767845127,-182.0,0.0001,2]
[348747404,1736767845136,-520.58004496,0.0001,2]
[348747405,1736767845145,-4988204.81111607,0.0001,2]
[348747406,1736767845166,-9126.59863861,0.0001,2]
[348747407,1736767845178,-11456.60020548,0.0001,2]
[348747408,1736767845188,-440.31330485,0.0001,2]
[348747409,1736767845199,-1255.4155945,0.0001,2]
[348747436,1736767845394,-500.0,9.986e-05,2]
[348747437,1736767845405,-5407931.97114049,0.0001,2]
[348747438,1736767845414,-4152657.95004802,0.0001,2]
[348747439,1736767845432,-483.0,0.0001,2]
[348747440,1736767845443,-1254.15527232,0.0001,2]
[348747441,1736767845454,-2480.74477818,0.0001,2]
[348747442,1736767845479,-1919.64,0.0001,2]
[348747443,1736767845915,-371.10187985,0.0001,2]
[348747444,1736767845927,-655.33673207,0.0001,2]
[348747445,1736767845937,-779513.26871352,0.0001,2]
[348747446,1736767846020,-500.71834008,0.0001,2]
[348747447,1736767846031,-13600.0,0.0001,2]
[348747448,1736767846058,-24034.0,0.0001,2]
[348747449,1736767846069,-285.82171714,0.0001,2]
[348747450,1736767846081,-16833.32242255,0.0001,2]
[348747451,1736767846092,-3718.06,0.0001,2]
[348747452,1736767846103,-917.96232085,0.0001,2]
[348747454,1736767846400,-500.0,9.442e-05,2]
[348747455,1736767846411,-2131.32905608,0.0001,2]
[348747456,1736767846452,-928.29705588,0.0001,2]
[348747457,1736767846502,-675.40884506,0.0001,2]
[348747458,1736767846513,-3968.53502799,0.0001,2]
[348747459,1736767846546,-10127.3643,0.0001,2]
[348747460,1736767846557,-260.08332841,0.0001,2]
[348747461,1736767846588,-626.98153394,0.0001,2]
[348747462,1736767846727,-6876.42682465,0.0001,2]
[348747463,1736767846738,-14999.5,0.0001,2]
[348747478,1736768182551,18220000.0,0.00023,120]
[348747480,1736768482672,5073.79139818,0.0001,4]
[348747481,1736768565181,-250.0,9.196e-05,2]
[348747482,1736768565202,-862.14,9.27e-05,2]
[348747483,1736768565225,-172.38,9.27e-05,2]
[348747484,1736768565246,-250.0,9.297e-05,2]
[348747485,1736768565271,-547.11,9.442e-05,2]
[348747486,1736768565294,-500.0,9.442e-05,2]
[348747487,1736768565318,-558.86,9.442e-05,2]
[348747488,1736768565343,-500.0,9.442e-05,2]
[348747489,1736768565365,-1000.0,9.442e-05,2]
[348747490,1736768565387,-500.0,9.442e-05,2]
[348747491,1736768565409,-500.0,9.442e-05,2]
[348747492,1736768565433,-500.0,9.442e-05,2]
[348747493,1736768565457,-500.0,9.442e-05,2]
[348747494,1736768565480,-589.51,9.442e-05,2]
[348747495,1736768600350,672.37,8.219e-05,2]
[348747718,1736768941438,689351.99981981,0.0001,10]
[348747810,1736769031727,-200.0,9.163e-05,2]
[348747811,1736769031737,-257.70725,9.168e-05,2]
[348747812,1736769031748,-742.29275,9.168e-05,2]
[348747813,1736769031758,-161.39,9.186e-05,2]
[348747814,1736769031768,-269.46,9.187e-05,2]
[348747815,1736769031777,-175.64,9.215e-05,2]
[348747816,1736769031786,-250.0,9.265e-05,2]
[348747817,1736769031795,-153.094,9.5e-05,2]
[348747818,1736769031805,-500.0,9.714e-05,2]
[348747819,1736769031814,-535.57,9.714e-05,2]
[348747820,1736769031823,-1000.0,9.714e-05,2]
[348747821,1736769031832,-500.0,9.714e-05,2]
[348747822,1736769031842,-436.75325,9.714e-05,2]
[348747823,1736769031855,-473.14675,9.714e-05,2]
[348747824,1736769031865,-545.31,9.714e-05,2]
[348747825,1736769031878,-500.0,9.753e-05,2]
[348747826,1736769031887,-31.54325002,9.973e-05,2]
[348747827,1736769031898,-718.000004,9.973e-05,2]
[348747828,1736769031911,-2556.52374598,9.973e-05,2]
[348747829,1736769031921,-174.579,9.973e-05,2]
[348747830,1736769031930,-500.0,9.986e-05,2]
[348747831,1736769031939,-500.0,9.986e-05,2]
[348747832,1736769031949,-500.0,9.986e-05,2]
[348747833,1736769031958,-500.0,9.986e-05,2]
[348747834,1736769031969,-609.0693624,9.986e-05,2]
[348747835,1736769031978,-500.0,9.986e-05,2]
[348747836,1736769031988,-500.0,9.986e-05,2]
[348747837,1736769031998,-500.0,9.986e-05,2]
[348747838,1736769032007,-500.0,9.986e-05,2]
[348747839,1736769032016,-500.0,9.986e-05,2]
[348747840,1736769032026,-500.0,9.986e-05,2]
[348747841,1736769032035,-500.0,9.986e-05,2]
[348747842,1736769032045,-500.0,9.986e-05,2]
[348747844,1736769032054,-500.0,9.986e-05,2]
[348747845,1736769032063,-500.0,9.986e-05,2]
[348747847,1736769032072,-500.0,9.986e-05,2]
[348747849,1736769032082,-500.0,9.986e-05,2]
[348747851,1736769032091,-500.0,9.986e-05,2]
[348747853,1736769032100,-500.0,9.986e-05,2]
[348747877,1736769032109,-500.0,9.986e-05,2]
[348747880,1736769032334,-500.0,9.986e-05,2]
[348747882,1736769032343,-500.0,9.986e-05,2]
[348747884,1736769032352,-501.22629495,9.986e-05,2]
[348747886,1736769032362,-600.79,9.986e-05,2]
[348747888,1736769032371,-504.25399019,9.986e-05,2]
[348747890,1736769032380,-500.0,9.986e-05,2]
[348747892,1736769032390,-503.03196625,9.986e-05,2]
[348747894,1736769032399,-500.0,9.986e-05,2]
[348747896,1736769032409,-500.0,9.986e-05,2]
[348747898,1736769032418,-476.05115427,9.986e-05,2]
[348747900,1736769032427,-505.310352,9.986e-05,2]
[348747902,1736769032437,-297.5166804,9.986e-05,2]
[348747904,1736769032446,-500.0,9.986e-05,2]
[348747906,1736769032455,-500.0,9.986e-05,2]
[348747908,1736769032466,-579.63954165,9.986e-05,2]
[348747910,1736769032475,-500.0,9.986e-05,2]
[348747911,1736769032485,-500.0,9.986e-05,2]
[348747913,1736769032494,-518.04,9.986e-05,2]
[348747915,1736769032504,-500.0,9.986e-05,2]
[348747917,1736769032513,-500.0,9.986e-05,2]
[348747919,1736769032522,-500.0,9.986e-05,2]
[348747921,1736769032531,-500.0,9.986e-05,2]
[348747923,1736769032541,-500.0,9.986e-05,2]
[348747925,1736769032550,-507.19429354,9.986e-05,2]
[348747927,1736769032561,-239.68237887,9.986e-05,2]
[348747929,1736769032570,-515.23635639,9.986e-05,2]
[348747931,1736769032580,-500.0,9.986e-05,2]
[348747933,1736769032589,-534.08182817,9.986e-05,2]
[348747935,1736769032598,-500.0,9.986e-05,2]
[348747937,1736769032608,-500.0,9.986e-05,2]
[348747939,1736769032617,-500.0,9.986e-05,2]
[348747941,1736769032626,-508.45292288,9.986e-05,2]
[348747943,1736769032635,-500.0,9.986e-05,2]
[348747945,1736769032644,-500.0,9.986e-05,2]
[348747947,1736769032653,-500.0,9.986e-05,2]
[348747949,1736769032663,-500.0,9.986e-05,2]
[348747951,1736769032672,-426.39753873,9.986e-05,2]
[348747953,1736769032682,-500.0,9.986e-05,2]
[348747955,1736769032691,-155.94361134,9.986e-05,2]
[348747957,1736769032700,-500.0,9.986e-05,2]
[348747959,1736769032709,-502.12790914,9.986e-05,2]
[348747961,1736769032721,-506.03841315,9.986e-05,2]
[348747963,1736769032730,-500.0,9.986e-05,2]
[348747965,1736769032739,-574.81716959,9.986e-05,2]
[348747967,1736769032748,-500.0,9.986e-05,2]
[348747969,1736769032757,-500.0,9.986e-05,2]
[348747971,1736769032767,-406.26897167,9.986e-05,2]
[348747973,1736769032776,-500.0,9.986e-05,2]
[348747974,1736769032786,-500.0,9.986e-05,2]
[348747976,1736769032795,-302.11034489,9.986e-05,2]
[348747978,1736769032803,-511.57550406,9.986e-05,2]
[348747980,1736769032813,-500.0,9.986e-05,2]
[348747982,1736769032822,-507.31740979,9.986e-05,2]
[348747984,1736769032832,-500.0,9.986e-05,2]
[348747986,1736769032842,-500.0,9.986e-05,2]
[348747988,1736769032851,-501.28597525,9.986e-05,2]
[348747990,1736769032861,-500.0,9.986e-05,2]
[348747992,1736769032872,-500.0,9.986e-05,2]
[348747994,1736769032884,-605.41998453,9.986e-05,2]
[348747996,1736769032894,-500.0,9.986e-05,2]
[348747998,1736769032904,-500.0,9.986e-05,2]
[348748000,1736769032914,-516.40983848,9.986e-05,2]
[348748002,1736769032924,-649.69,9.986e-05,2]
[348748004,1736769032933,-500.0,9.986e-05,2]
[348748005,1736769032943,-500.0,9.986e-05,2]
[348748006,1736769032952,-500.0,9.986e-05,2]
[348748007,1736769032961,-626.34250373,9.986e-05,2]
[348748008,1736769032972,-500.0,9.986e-05,2]
[348748009,1736769032981,-500.0,9.986e-05,2]
[348748010,1736769032990,-500.0,9.986e-05,2]
[348748011,1736769032999,-500.0,9.986e-05,2]
[348748012,1736769033008,-500.0,9.986e-05,2]
[348748013,1736769033017,-500.0,9.986e-05,2]
[348748014,1736769033026,-500.0,9.986e-05,2]
[348748015,1736769033036,-500.0,9.986e-05,2]
[348748016,1736769033045,-535.70954898,9.986e-05,2]
[348748017,1736769033054,-500.0,9.986e-05,2]
[348748019,1736769033063,-500.0,9.986e-05,2]
[348748020,1736769033074,-500.0,9.986e-05,2]
[348748022,1736769033084,-500.0,9.986e-05,2]
[348748024,1736769033093,-500.0,9.986e-05,2]
[348748026,1736769033103,-500.0,9.986e-05,2]
[348748028,1736769033113,-503.29980166,9.986e-05,2]
[348748030,1736769033124,-500.0,9.986e-05,2]
[348748032,1736769033133,-500.0,9.986e-05,2]
[348748033,1736769033143,-500.0,9.986e-05,2]
[348748035,1736769033153,-500.0,9.986e-05,2]
[348748036,1736769033163,-500.0,9.986e-05,2]
[348748037,1736769033173,-500.0,9.986e-05,2]
[348748038,1736769033183,-500.0,9.986e-05,2]
[348748039,1736769033193,-500.0,9.986e-05,2]
[348748040,1736769033203,-190.19,9.986e-05,2]
[348748041,1736769033212,-500.0,9.986e-05,2]
[348748042,1736769033224,-500.0,9.986e-05,2]
[348748043,1736769033234,-500.0,9.986e-05,2]
[348748044,1736769033244,-500.0,9.986e-05,2]
[348748045,1736769033254,-500.0,9.986e-05,2]
[348748046,1736769033265,-500.0,9.986e-05,2]
[348748047,1736769033275,-500.0,9.986e-05,2]
[348748048,1736769033285,-500.0,9.986e-05,2]
[348748049,1736769033296,-500.0,9.986e-05,2]
[348748050,1736769033306,-500.0,9.986e-05,2]
[348748051,1736769033316,-500.0,9.986e-05,2]
[348748052,1736769033326,-500.0,9.986e-05,2]
[348748053,1736769033336,-500.0,9.986e-05,2]
[348748054,1736769033346,-500.0,9.986e-05,2]
[348748055,1736769033356,-500.0,9.986e-05,2]
[348748056,1736769033366,-500.0,9.986e-05,2]
[348748057,1736769033376,-502.90916982,9.986e-05,2]
[348748058,1736769033387,-503.20406956,9.986e-05,2]
[348748059,1736769033396,-507.36781816,9.986e-05,2]
[348748060,1736769033406,-500.0,9.986e-05,2]
[348748061,1736769033416,-646.54133657,9.986e-05,2]
[348748062,1736769033426,-500.0,9.986e-05,2]
[348748063,1736769033436,-500.0,9.986e-05,2]
[348748064,1736769033446,-502.35431139,9.986e-05,2]
[348748065,1736769033456,-503.18094507,9.986e-05,2]
[348748066,1736769033468,-500.0,9.986e-05,2]
[348748067,1736769033479,-500.0,9.986e-05,2]
[348748068,1736769033489,-501.77147756,9.986e-05,2]
[348748069,1736769033499,-501.52462586,9.986e-05,2]
[348748070,1736769033509,-500.0,9.986e-05,2]
[348748071,1736769033519,-500.0,9.986e-05,2]
[348748072,1736769033528,-500.0,9.986e-05,2]
[348748073,1736769033538,-500.0,9.986e-05,2]
[348748074,1736769033548,-506.16476273,9.986e-05,2]
[348748075,1736769033558,-500.0,9.986e-05,2]
[348748076,1736769033567,-500.0,9.986e-05,2]
[348748077,1736769033577,-508.04793263,9.986e-05,2]
[348748078,1736769033588,-500.0,9.986e-05,2]
[348748079,1736769033598,-503.29227347,9.986e-05,2]
[348748080,1736769033608,-504.40265872,9.986e-05,2]
[348748081,1736769033618,-500.0,9.986e-05,2]
[348748082,1736769033628,-510.96595475,9.986e-05,2]
[348748083,1736769033638,-287.61234503,9.986e-05,2]
[348748084,1736769033648,-500.0,9.986e-05,2]
[348748085,1736769033658,-500.0,9.986e-05,2]
[348748086,1736769033668,-500.0,9.986e-05,2]
[348748087,1736769033678,-649.59,9.986e-05,2]
[348748088,1736769033688,-500.0,9.986e-05,2]
[348748089,1736769033697,-503.69329151,9.986e-05,2]
[348748090,1736769033707,-500.0,9.986e-05,2]
[348748091,1736769033718,-503.7449619,9.986e-05,2]
[348748092,1736769033727,-500.0,9.986e-05,2]
[348748093,1736769033736,-500.0,9.986e-05,2]
[348748094,1736769033746,-500.0,9.986e-05,2]
[348748095,1736769033755,-512.34034123,9.986e-05,2]
[348748096,1736769033764,-505.65404367,9.986e-05,2]
[348748097,1736769033774,-500.0,9.986e-05,2]
[348748098,1736769033784,-500.0,9.986e-05,2]
[348748099,1736769033793,-614.19665902,9.986e-05,2]
[348748100,1736769033803,-500.0,9.986e-05,2]
[348748101,1736769033812,-504.04881179,9.986e-05,2]
[348748102,1736769033821,-447.16,9.986e-05,2]
[348748103,1736769033831,-500.0,9.986e-05,2]
[348748104,1736769033841,-500.0,9.986e-05,2]
[348748105,1736769033851,-500.0,9.986e-05,2]
[348748106,1736769033862,-500.0,9.986e-05,2]
[348748107,1736769033875,-500.0,9.986e-05,2]
[348748108,1736769033886,-500.0,9.986e-05,2]
[348748109,1736769033897,-500.0,9.986e-05,2]
[348748110,1736769033907,-500.0,9.986e-05,2]
[348748111,1736769033918,-500.0,9.986e-05,2]
[348748112,1736769033928,-500.0,9.986e-05,2]
[348748113,1736769033938,-500.0,9.986e-05,2]
[348748114,1736769033948,-500.0,9.986e-05,2]
[348748115,1736769033959,-500.0,9.986e-05,2]
[348748116,1736769033972,-500.0,9.986e-05,2]
[348748117,1736769033982,-500.0,9.986e-05,2]
[348748118,1736769033992,-316.62392498,9.986e-05,2]
[348748119,1736769034002,-500.0,9.986e-05,2]
[348748120,1736769034012,-458.82940542,9.986e-05,2]
[348748121,1736769034021,-500.0,9.986e-05,2]
[348748122,1736769034031,-1291.67,9.987e-05,2]
[348748123,1736769034042,-548.69,9.987e-05,2]
[348748124,1736769034051,-500.0,9.987e-05,2]
[348748125,1736769034061,-629.07,9.987e-05,2]
[348748126,1736769034071,-500.0,9.988e-05,2]
[348748127,1736769034081,-535.57,9.988e-05,2]
[348748128,1736769034091,-500.0,9.988e-05,2]
[348748129,1736769034101,-909.9,9.988e-05,2]
[348748130,1736769034111,-545.31,9.988e-05,2]
[348748131,1736769034120,-500.0,9.989e-05,2]
[348748132,1736769034130,-504.73,9.989e-05,2]
[348748133,1736769034139,-501.36,9.989e-05,2]
[348748134,1736769034149,-1167.42,9.989e-05,2]
[348748135,1736769034159,-500.96,9.989e-05,2]
[348748136,1736769034168,-661.55,9.989e-05,2]
[348748137,1736769034178,-500.0,9.989e-05,2]
[348748138,1736769034188,-606.0,9.989e-05,2]
[348748139,1736769034197,-523.11,9.989e-05,2]